fUST/lending_fUST_20250206
["ID","MTS","AMOUNT","RATE_DAILY","PERIOD"]
[351815103,1738798248986,-151.0,0.00013835,2]
[351815104,1738798248997,-575.63,0.00013835,2]
[351815105,1738798249007,-2759.48,0.00013835,2]
[351815106,1738798249019,-667.62,0.00013835,2]
[351815107,1738798249030,-500.0,0.00013835,2]
[351815108,1738798249039,-500.0,0.00013835,2]
[351815109,1738798249049,-352.54752496,0.00013835,2]
[351815110,1738798249061,-500.0,0.00013835,2]
[351815111,1738798249071,-500.0,0.00013835,2]
[351815112,1738798249081,-683.1,0.00013835,2]
[351815113,1738798249091,-500.0,0.00013835,2]
[351815114,1738798249101,-500.0,0.00013835,2]
[351815115,1738798249111,-505.1433936,0.00013835,2]
[351815116,1738798249121,-500.0,0.00013835,2]
[351815117,1738798249131,-2836.05,0.00013835,2]
[351815118,1738798249140,-500.0,0.00013835,2]
[351815119,1738798249151,-500.0,0.00013835,2]
[351815120,1738798249162,-500.0,0.00013835,2]
[351815121,1738798249172,-500.0,0.00013835,2]
[351815122,1738798249181,-500.0,0.00013835,2]
[351815123,1738798249191,-1346.91,0.00013835,2]
[351815124,1738798249201,-500.0,0.00013835,2]
[351815125,1738798249210,-500.0,0.00013835,2]
[351815126,1738798249220,-247.035217,0.00013835,2]
[351815127,1738798249230,-500.0,0.00013835,2]
[351815128,1738798249240,-500.0,0.00013835,2]
[351815129,1738798249251,-546.28,0.00013835,2]
[351815130,1738798249261,-503.08340176,0.00013835,2]
[351815131,1738798249271,-500.0,0.00013835,2]
[351815132,1738798249281,-500.0,0.00013835,2]
[351815133,1738798249291,-500.0,0.00013835,2]
[351815134,1738798249300,-500.0,0.00013835,2]
[351815135,1738798249310,-500.0,0.00013835,2]
[351815136,1738798249320,-534.65,0.00013835,2]
[351815137,1738798249329,-1172.95,0.00013835,2]
[351815138,1738798249339,-503.33780884,0.00013835,2]
[351815139,1738798249347,-1113.56,0.00013835,2]
[351815140,1738798249357,-500.0,0.00013835,2]
[351815141,1738798249368,-500.0,0.00013835,2]
[351815142,1738798249377,-500.0,0.00013835,2]
[351815143,1738798249386,-507.76093265,0.00013835,2]
[351815144,1738798249395,-151.0,0.00013835,2]
[351815145,1738798249405,-355.3931408,0.00013835,2]
[351815146,1738798249415,-802.01,0.00013835,2]
[351815147,1738798249425,-602.54,0.00013835,2]
[351815148,1738798249436,-500.0,0.00013835,2]
[351815149,1738798249446,-500.0,0.00013835,2]
[351815150,1738798249456,-500.0,0.00013835,2]
[351815151,1738798249465,-500.0,0.00013835,2]
[351815152,1738798249475,-500.0,0.00013835,2]
[351815153,1738798249485,-630.92,0.00013835,2]
[351815154,1738798249495,-151.0,0.00013835,2]
[351815155,1738798249504,-500.0,0.00013835,2]
[351815156,1738798249514,-500.0,0.00013835,2]
[351815157,1738798249523,-151.0,0.00013835,2]
[351815158,1738798249533,-976.83,0.00013835,2]
[351815159,1738798249543,-231.85519623,0.00013835,2]
[351815160,1738798249553,-781.04,0.00013835,2]
[351815161,1738798249563,-500.0,0.00013835,2]
[351815162,1738798249573,-688.72,0.00013835,2]
[351815163,1738798249583,-500.0,0.00013835,2]
[351815164,1738798249593,-500.0,0.00013835,2]
[351815165,1738798249603,-462.59792942,0.00013835,2]
[351815166,1738798249613,-500.0,0.00013835,2]
[351815167,1738798249623,-782.89,0.00013835,2]
[351815168,1738798249633,-500.0,0.00013835,2]
[351815169,1738798249642,-500.0,0.00013835,2]
[351815170,1738798249652,-3331.81,0.00013835,2]
[351815171,1738798249663,-1726.27,0.00013835,2]
[351815172,1738798249673,-500.0,0.00013835,2]
[351815173,1738798249682,-500.0,0.00013835,2]
[351815174,1738798249692,-500.0,0.00013835,2]
[351815175,1738798249702,-696.85,0.00013835,2]
[351815176,1738798249712,-676.04,0.00013835,2]
[351815177,1738798249722,-500.0,0.00013835,2]
[351815178,1738798249732,-500.0,0.00013835,2]
[351815179,1738798249742,-170.225871,0.00013835,2]
[351815180,1738798249752,-500.0,0.00013835,2]
[351815181,1738798249762,-170.225871,0.00013835,2]
[351815182,1738798249771,-1398.25,0.00013835,2]
[351815183,1738798249781,-500.0,0.00013835,2]
[351815184,1738798249790,-559.5,0.00013835,2]
[351815185,1738798249800,-500.0,0.00013835,2]
[351815186,1738798249810,-287.124491,0.00013835,2]
[351815187,1738798249820,-697.71,0.00013835,2]
[351815188,1738798249830,-500.0,0.00013835,2]
[351815189,1738798249839,-500.0,0.00013835,2]
[351815190,1738798249849,-500.0,0.00013835,2]
[351815191,1738798249859,-500.0,0.00013835,2]
[351815192,1738798249869,-500.0,0.00013835,2]
[351815193,1738798249878,-993.14,0.00013835,2]
[351815194,1738798249888,-500.0,0.00013835,2]
[351815195,1738798249897,-500.0,0.00013835,2]
[351815196,1738798249907,-500.0,0.00013835,2]
[351815197,1738798249918,-500.0,0.00013835,2]
[351815198,1738798249928,-500.0,0.00013835,2]
[351815199,1738798249938,-1338.57,0.00013835,2]
[351815200,1738798249948,-550.82,0.00013835,2]
[351815201,1738798249958,-500.0,0.00013835,2]
[351815202,1738798249968,-500.0,0.00013835,2]
[351815203,1738798249981,-500.0,0.00013835,2]
[351815204,1738798249990,-500.0,0.00013835,2]
[351815205,1738798250000,-600.42,0.00013835,2]
[351815206,1738798250010,-500.0,0.00013835,2]
[351815207,1738798250021,-500.0,0.00013835,2]
[351815208,1738798250031,-500.0,0.00013835,2]
[351815209,1738798250041,-526.66492609,0.00013835,2]
[351815210,1738798250051,-500.0,0.00013835,2]
[351815211,1738798250061,-500.0,0.00013835,2]
[351815212,1738798250070,-500.0,0.00013835,2]
[351815213,1738798250080,-1473.29,0.00013835,2]
[351815214,1738798250089,-500.0,0.00013835,2]
[351815215,1738798250099,-500.0,0.00013835,2]
[351815216,1738798250108,-500.0,0.00013835,2]
[351815217,1738798250118,-151.0,0.00013835,2]
[351815218,1738798250127,-938.69,0.00013835,2]
[351815219,1738798250136,-151.0,0.00013835,2]
[351815220,1738798250150,-500.0,0.00013835,2]
[351815221,1738798250159,-500.0,0.00013835,2]
[351815222,1738798250169,-500.0,0.00013835,2]
[351815223,1738798250178,-814.25,0.00013835,2]
[351815224,1738798250187,-216.85421115,0.00013835,2]
[351815225,1738798250197,-151.0,0.00013835,2]
[351815226,1738798250207,-559.63,0.00013835,2]
[351815227,1738798250216,-500.0,0.00013835,2]
[351815228,1738798250225,-687.0,0.00013835,2]
[351815229,1738798250235,-662.34,0.00013835,2]
[351815230,1738798250246,-500.0,0.00013835,2]
[351815231,1738798250255,-500.0,0.00013835,2]
[351815232,1738798250264,-500.0,0.00013835,2]
[351815233,1738798250274,-151.0,0.00013835,2]
[351815234,1738798250284,-500.0,0.00013835,2]
[351815235,1738798250294,-500.0,0.00013835,2]
[351815236,1738798250303,-500.0,0.00013835,2]
[351815237,1738798250313,-500.0,0.00013835,2]
[351815238,1738798250322,-613.03,0.00013835,2]
[351815239,1738798250331,-500.0,0.00013835,2]
[351815240,1738798250340,-620.93,0.00013835,2]
[351815241,1738798250349,-1292.63,0.00013835,2]
[351815242,1738798250358,-792.57,0.00013835,2]
[351815243,1738798250367,-525.18,0.00013835,2]
[351815244,1738798250375,-500.0,0.00013835,2]
[351815245,1738798250385,-2430.58,0.00013835,2]
[351815246,1738798250395,-500.0,0.00013835,2]
[351815247,1738798250407,-500.0,0.00013835,2]
[351815248,1738798250416,-500.0,0.00013835,2]
[351815249,1738798250425,-151.0,0.00013835,2]
[351815250,1738798250434,-151.0,0.00013835,2]
[351815251,1738798250443,-601.76,0.00013835,2]
[351815252,1738798250453,-772.37,0.00013835,2]
[351815253,1738798250462,-500.0,0.00013835,2]
[351815254,1738798250472,-188.988048,0.00013835,2]
[351815255,1738798250481,-801.55,0.00013835,2]
[351815256,1738798250491,-500.0,0.00013835,2]
[351815257,1738798250501,-500.0,0.00013835,2]
[351815258,1738798250510,-500.0,0.00013835,2]
[351815259,1738798250520,-606.66,0.00013835,2]
[351815260,1738798250530,-500.0,0.00013835,2]
[351815261,1738798250541,-153.324186,0.00013835,2]
[351815262,1738798250551,-621.79,0.00013835,2]
[351815263,1738798250561,-7862.65,0.00013835,2]
[351815264,1738798250571,-500.0,0.00013835,2]
[351815265,1738798250581,-500.0,0.00013835,2]
[351815266,1738798250591,-500.0,0.00013835,2]
[351815267,1738798250601,-500.0,0.00013835,2]
[351815268,1738798250611,-1142.79,0.00013835,2]
[351815269,1738798250621,-2019.08,0.00013835,2]
[351815270,1738798250631,-500.0,0.00013835,2]
[351815271,1738798250642,-151.0,0.00013835,2]
[351815272,1738798250652,-1000.0,0.00013835,2]
[351815273,1738798250662,-169.99447994,0.00013835,2]
[351815274,1738798250673,-21877.09,0.00013835,2]
[351815275,1738798250683,-500.0,0.00013835,2]
[351815276,1738798250692,-151.0,0.00013835,2]
[351815277,1738798250703,-990.69,0.00013835,2]
[351815278,1738798250713,-890.56,0.00013835,2]
[351815279,1738798250723,-500.0,0.00013835,2]
[351815280,1738798250733,-2212.9,0.00013835,2]
[351815281,1738798250743,-198.34818467,0.00013835,2]
[351815282,1738798250753,-151.0,0.00013835,2]
[351815283,1738798250763,-4316.39,0.00013835,2]
[351815284,1738798250773,-1046.8,0.00013835,2]
[351815285,1738798250783,-1370.55,0.00013835,2]
[351815286,1738798250793,-500.0,0.00013835,2]
[351815287,1738798250802,-500.0,0.00013835,2]
[351815288,1738798250954,-1413.72,0.00013835,2]
[351815289,1738798250965,-500.0,0.00013835,2]
[351815290,1738798250979,-500.0,0.00013835,2]
[351815291,1738798250989,-4964.8,0.00013835,2]
[351815292,1738798251000,-151.0,0.00013835,2]
[351815293,1738798251009,-563.66,0.00013835,2]
[351815294,1738798251020,-2741.6,0.00013835,2]
[351815295,1738798251031,-500.0,0.00013835,2]
[351815296,1738798251041,-500.0,0.00013835,2]
[351815297,1738798251052,-500.0,0.00013835,2]
[351815298,1738798251063,-500.0,0.00013835,2]
[351815299,1738798251073,-2150.18,0.00013835,2]
[351815300,1738798251083,-500.0,0.00013835,2]
[351815301,1738798251094,-500.0,0.00013835,2]
[351815302,1738798251104,-151.0,0.00013835,2]
[351815303,1738798251113,-500.0,0.00013835,2]
[351815304,1738798251123,-583.52863974,0.00013835,2]
[351815305,1738798251134,-500.0,0.00013835,2]
[351815306,1738798251144,-500.0,0.00013835,2]
[351815307,1738798251153,-758.35,0.00013835,2]
[351815308,1738798251163,-6762.17,0.00013835,2]
[351815309,1738798251173,-1928.06,0.00013835,2]
[351815310,1738798251182,-953.92,0.00013835,2]
[351815311,1738798251192,-151.0,0.00013835,2]
[351815312,1738798251201,-151.0,0.00013835,2]
[351815313,1738798251211,-259.812644,0.00013835,2]
[351815314,1738798251221,-950.07,0.00013835,2]
[351815315,1738798251230,-650.91,0.00013835,2]
[351815316,1738798251239,-500.0,0.00013835,2]
[351815317,1738798251248,-151.0,0.00013835,2]
[351815318,1738798251258,-500.0,0.00013835,2]
[351815319,1738798251267,-500.0,0.00013835,2]
[351815320,1738798251277,-500.0,0.00013835,2]
[351815321,1738798251286,-500.0,0.00013835,2]
[351815322,1738798251295,-500.0,0.00013835,2]
[351815323,1738798251307,-822.67,0.00013835,2]
[351815324,1738798251317,-500.0,0.00013835,2]
[351815325,1738798251327,-500.0,0.00013835,2]
[351815326,1738798251337,-500.0,0.00013835,2]
[351815327,1738798251346,-500.0,0.00013835,2]
[351815328,1738798251356,-500.0,0.00013835,2]
[351815329,1738798251365,-1344.99,0.00013835,2]
[351815330,1738798251375,-465.97352666,0.00013835,2]
[351815331,1738798251384,-500.0,0.00013835,2]
[351815332,1738798251394,-500.0,0.00013835,2]
[351815333,1738798251404,-776.14,0.00013835,2]
[351815334,1738798251414,-500.0,0.00013835,2]
[351815335,1738798251423,-500.0,0.00013835,2]
[351815336,1738798251433,-500.0,0.00013835,2]
[351815337,1738798251443,-500.0,0.00013835,2]
[351815338,1738798251453,-151.0,0.00013835,2]
[351815339,1738798251463,-2282.17,0.00013835,2]
[351815340,1738798251477,-528.8340969,0.00013835,2]
[351815341,1738798251488,-670.6,0.00013835,2]
[351815342,1738798251498,-845.27,0.00013835,2]
[351815343,1738798251508,-500.0,0.00013835,2]
[351815344,1738798251517,-500.0,0.00013835,2]
[351815345,1738798251527,-151.0,0.00013835,2]
[351815346,1738798251538,-151.0,0.00013835,2]
[351815347,1738798251547,-2352.72,0.00013835,2]
[351815348,1738798251557,-602.07,0.00013835,2]
[351815349,1738798251566,-151.0,0.00013835,2]
[351815350,1738798251576,-31088.45,0.00013835,2]
[351815351,1738798251586,-154.119608,0.00013835,2]
[351815352,1738798251596,-151.0,0.00013835,2]
[351815353,1738798251605,-151.0,0.00013835,2]
[351815354,1738798251615,-5512.43,0.00013835,2]
[351815355,1738798251625,-500.0,0.00013835,2]
[351815356,1738798251635,-151.0,0.00013835,2]
[351815357,1738798251645,-500.0,0.00013835,2]
[351815358,1738798251654,-500.0,0.00013835,2]
[351815359,1738798251664,-92463.37,0.00013835,2]
[351815360,1738798251675,-503.48,0.00013835,2]
[351815361,1738798251685,-500.0,0.00013835,2]
[351815362,1738798251695,-10224.73,0.00013835,2]
[351815363,1738798251704,-500.0,0.00013835,2]
[351815364,1738798251714,-500.0,0.00013835,2]
[351815365,1738798251724,-151.0,0.00013835,2]
[351815366,1738798251734,-542.95,0.00013835,2]
[351815367,1738798251744,-2555.32,0.00013835,2]
[351815368,1738798251754,-4125.25,0.00013835,2]
[351815369,1738798251764,-4235.83,0.00013835,2]
[351815370,1738798251774,-500.0,0.00013835,2]
[351815371,1738798251783,-500.0,0.00013835,2]
[351815372,1738798251793,-925.36,0.00013835,2]
[351815373,1738798251803,-500.0,0.00013835,2]
[351815374,1738798251813,-534.73,0.00013835,2]
[351815375,1738798251822,-2668.67,0.00013835,2]
[351815376,1738798251832,-500.0,0.00013835,2]
[351815377,1738798251841,-500.0,0.00013835,2]
[351815378,1738798251851,-530.65,0.00013835,2]
[351815379,1738798251861,-500.0,0.00013835,2]
[351815380,1738798251870,-1626.15,0.00013835,2]
[351815381,1738798251879,-500.0,0.00013835,2]
[351815382,1738798251889,-535.12,0.00013835,2]
[351815383,1738798251898,-500.0,0.00013835,2]
[351815384,1738798251911,-561.31,0.00013835,2]
[351815385,1738798251921,-2219.08,0.00013835,2]
[351815386,1738798251930,-507.09,0.00013835,2]
[351815387,1738798251939,-500.0,0.00013835,2]
[351815388,1738798251949,-2543.19,0.00013835,2]
[351815389,1738798251959,-505.74199132,0.00013835,2]
[351815390,1738798251970,-500.0,0.00013835,2]
[351815391,1738798251982,-6207.06,0.00013835,2]
[351815392,1738798251991,-500.0,0.00013835,2]
[351815393,1738798252001,-793.28,0.00013835,2]
[351815394,1738798252011,-500.0,0.00013835,2]
[351815395,1738798252022,-1232.8,0.00013835,2]
[351815396,1738798252031,-3224.33,0.00013835,2]
[351815397,1738798252041,-1078.46,0.00013835,2]
[351815398,1738798252052,-618.79,0.00013835,2]
[351815399,1738798252061,-500.0,0.00013835,2]
[351815400,1738798252071,-500.0,0.00013835,2]
[351815401,1738798252080,-2402.16,0.00013835,2]
[351815402,1738798252090,-880.1,0.00013835,2]
[351815403,1738798252099,-500.0,0.00013835,2]
[351815404,1738798252109,-500.0,0.00013835,2]
[351815405,1738798252118,-151.0,0.00013835,2]
[351815406,1738798252127,-803.45,0.00013835,2]
[351815407,1738798252137,-651.72,0.00013835,2]
[351815408,1738798252147,-500.0,0.00013835,2]
[351815409,1738798252157,-151.0,0.00013835,2]
[351815410,1738798252167,-500.0,0.00013835,2]
[351815411,1738798252177,-500.0,0.00013835,2]
[351815412,1738798252187,-7056.17,0.00013835,2]
[351815413,1738798252197,-151.0,0.00013835,2]
[351815414,1738798252206,-522.25,0.00013835,2]
[351815415,1738798252216,-738.39,0.00013835,2]
[351815416,1738798252226,-500.0,0.00013835,2]
[351815417,1738798252235,-500.0,0.00013835,2]
[351815418,1738798252254,-660.26,0.00013835,2]
[351815419,1738798252263,-1000.0,0.00013835,2]
[351815420,1738798252273,-500.0,0.00013835,2]
[351815421,1738798252283,-3432.9,0.00013835,2]
[351815422,1738798252292,-500.0,0.00013835,2]
[351815423,1738798252302,-500.0,0.00013835,2]
[351815424,1738798252311,-513.07,0.00013835,2]
[351815425,1738798252321,-500.0,0.00013835,2]
[351815426,1738798252330,-1102.11,0.00013835,2]
[351815427,1738798252339,-500.0,0.00013835,2]
[351815428,1738798252349,-500.0,0.00013835,2]
[351815429,1738798252358,-500.0,0.00013835,2]
[351815430,1738798252368,-500.0,0.00013835,2]
[351815431,1738798252377,-500.0,0.00013835,2]
[351815432,1738798252387,-500.0,0.00013835,2]
[351815433,1738798252396,-151.0,0.00013835,2]
[351815434,1738798252405,-500.0,0.00013835,2]
[351815435,1738798252414,-503.09337898,0.00013835,2]
[351815436,1738798252424,-500.0,0.00013835,2]
[351815437,1738798252433,-621.19,0.00013835,2]
[351815438,1738798252442,-832.56,0.00013835,2]
[351815439,1738798252452,-1291.26,0.00013835,2]
[351815440,1738798252462,-151.0,0.00013835,2]
[351815441,1738798252471,-500.0,0.00013835,2]
[351815442,1738798252481,-500.0,0.00013835,2]
[351815443,1738798252490,-422.51255311,0.00013835,2]
[351815444,1738798252499,-500.0,0.00013835,2]
[351815445,1738798252508,-500.0,0.00013835,2]
[351815446,1738798252518,-500.0,0.00013835,2]
[351815447,1738798252527,-500.0,0.00013835,2]
[351815448,1738798252536,-151.0,0.00013835,2]
[351815449,1738798252546,-584.90785736,0.00013835,2]
[351815450,1738798252555,-187.48596558,0.00013835,2]
[351815451,1738798252564,-500.0,0.00013835,2]
[351815452,1738798252573,-11477.77,0.00013835,2]
[351815453,1738798252583,-500.0,0.00013835,2]
[351815454,1738798252592,-500.0,0.00013835,2]
[351815455,1738798252601,-500.0,0.00013873,2]
[351815456,1738798252611,-472.84017149,0.00013873,2]
[351815457,1738798252620,-500.0,0.00013873,2]
[351815458,1738798252629,-500.83311623,0.00013873,2]
[351815459,1738798252639,-500.0,0.00013873,2]
[351815460,1738798252648,-500.0,0.00013873,2]
[351815461,1738798252657,-4968.20641107,0.000139,2]
[351815462,1738798252667,-273.16598532,0.00013972,2]
[351815463,1738798252677,-509.89494852,0.00013972,2]
[351815464,1738798252686,-384.74465981,0.00013972,2]
[351815465,1738798252695,-500.0,0.00013972,2]
[351815466,1738798252704,-500.0,0.00013972,2]
[351815467,1738798252713,-500.0,0.00013972,2]
[351815468,1738798252722,-500.0,0.00013972,2]
[351815469,1738798252731,-500.0,0.00013972,2]
[351815470,1738798252740,-500.0,0.00013972,2]
[351815471,1738798252749,-500.0,0.00013972,2]
[351815472,1738798252759,-500.0,0.00013972,2]
[351815473,1738798252768,-500.0,0.00013972,2]
[351815474,1738798252777,-500.0,0.00013972,2]
[351815475,1738798252787,-500.0,0.00013972,2]
[351815476,1738798252797,-500.0,0.00013972,2]
[351815477,1738798252807,-500.0,0.00013972,2]
[351815478,1738798252818,-500.0,0.00013972,2]
[351815479,1738798252828,-501.55642339,0.00013972,2]
[351815480,1738798252837,-500.0,0.00013972,2]
[351815481,1738798252846,-741.45,0.00013972,2]
[351815482,1738798252856,-500.0,0.00013972,2]
[351815483,1738798252865,-500.0,0.00013972,2]
[351815484,1738798252874,-500.0,0.00013972,2]
[351815485,1738798252883,-500.0,0.00013972,2]
[351815486,1738798252893,-500.0,0.00013972,2]
[351815487,1738798252902,-500.0,0.00013972,2]
[351815488,1738798252912,-271.21503122,0.00013972,2]
[351815489,1738798252922,-500.0,0.00013972,2]
[351815490,1738798252932,-500.0,0.00013972,2]
[351815491,1738798252943,-500.0,0.00013972,2]
[351815492,1738798252954,-500.0,0.00013972,2]
[351815493,1738798252964,-500.0,0.00013972,2]
[351815494,1738798252974,-500.0,0.00013972,2]
[351815495,1738798252987,-503.09,0.00013972,2]
[351815496,1738798252996,-500.0,0.00013972,2]
[351815497,1738798253005,-500.0,0.00013972,2]
[351815498,1738798253015,-1042.77,0.00013972,2]
[351815499,1738798253024,-500.0,0.00013972,2]
[351815500,1738798253033,-500.0,0.00013972,2]
[351815501,1738798253042,-500.0,0.00013972,2]
[351815502,1738798253052,-782.11,0.00013972,2]
[351815503,1738798253062,-500.0,0.00013972,2]
[351815504,1738798253072,-500.0,0.00013972,2]
[351815505,1738798253081,-500.0,0.00013972,2]
[351815506,1738798253090,-500.0,0.00013972,2]
[351815507,1738798253100,-500.0,0.00013972,2]
[351815508,1738798253109,-500.0,0.00013972,2]
[351815509,1738798253118,-500.0,0.00013972,2]
[351815510,1738798253128,-500.0,0.00013972,2]
[351815511,1738798253137,-230.18554724,0.00013972,2]
[351815512,1738798253146,-398.76486589,0.00013972,2]
[351815513,1738798253155,-500.0,0.00013972,2]
[351815514,1738798253166,-500.0,0.00013972,2]
[351815515,1738798253175,-500.0,0.00013972,2]
[351815516,1738798253185,-500.0,0.00013972,2]
[351815517,1738798253194,-500.0,0.00013972,2]
[351815518,1738798253204,-500.0,0.00013972,2]
[351815519,1738798253214,-500.0,0.00013972,2]
[351815520,1738798253224,-500.0,0.00013972,2]
[351815521,1738798253234,-500.0,0.00013972,2]
[351815522,1738798253244,-500.0,0.00013972,2]
[351815523,1738798253253,-500.0,0.00013972,2]
[351815524,1738798253262,-500.0,0.00013972,2]
[351815525,1738798253271,-379.45244797,0.00013972,2]
[351815526,1738798253280,-500.0,0.00013972,2]
[351815527,1738798253290,-687.29,0.00013972,2]
[351815528,1738798253415,-500.0,0.00013972,2]
[351815529,1738798253425,-500.0,0.00013972,2]
[351815530,1738798253435,-350.33110555,0.00013972,2]
[351815531,1738798253444,-500.0,0.00013972,2]
[351815532,1738798253454,-500.0,0.00013972,2]
[351815533,1738798253464,-1505.56,0.00013972,2]
[351815534,1738798253473,-348.21033546,0.00013972,2]
[351815535,1738798253990,-533.76,0.00013698,2]
[351815536,1738798254000,-165.17,0.000137,2]
[351815537,1738798254009,-165.17,0.000137,2]
[351815538,1738798254020,-500.0,0.00013835,2]
[351815539,1738798254030,-533.76,0.00013835,2]
[351815540,1738798254040,-151.0,0.00013835,2]
[351815541,1738798254049,-151.78966454,0.00013972,2]
[351815542,1738798254060,-593.45,0.00013972,2]
[351815543,1738798254070,-500.0,0.00013972,2]
[351815544,1738798254079,-500.0,0.00013972,2]
[351815545,1738798254088,-500.0,0.00013972,2]
[351815546,1738798254097,-500.0,0.00013972,2]
[351815547,1738798254107,-500.0,0.00013972,2]
[351815548,1738798254117,-500.0,0.00013972,2]
[351815549,1738798254127,-500.0,0.00013972,2]
[351815550,1738798254138,-636.77969313,0.00013972,2]
[351815551,1738798254149,-582.09,0.00013972,2]
[351815552,1738798254158,-500.0,0.00013972,2]
[351815553,1738798254168,-500.0,0.00013972,2]
[351815554,1738798254178,-500.0,0.00013972,2]
[351815555,1738798254187,-326.39705951,0.00013972,2]
[351815556,1738798254196,-500.0,0.00013972,2]
[351815557,1738798254206,-151.0,0.00013972,2]
[351815558,1738798254216,-662.57,0.00013972,2]
[351815559,1738798254226,-500.0,0.00013972,2]
[351815560,1738798254235,-596.52178228,0.00013972,2]
[351815561,1738798254245,-500.0,0.00013972,2]
[351815562,1738798254254,-526.54790485,0.00013972,2]
[351815563,1738798254263,-500.0,0.00013972,2]
[351815564,1738798254273,-475.30633217,0.00013972,2]
[351815565,1738798254282,-506.91672502,0.00013972,2]
[351815566,1738798254292,-530.97,0.00013972,2]
[351815567,1738798254302,-989.6,0.00013972,2]
[351815568,1738798254311,-500.0,0.00013972,2]
[351815569,1738798254321,-500.0,0.00013972,2]
[351815570,1738798254330,-773.71,0.00013972,2]
[351815571,1738798254339,-500.0,0.00013972,2]
[351815572,1738798254349,-550.24,0.00013972,2]
[351815573,1738798254358,-500.0,0.00013972,2]
[351815574,1738798254368,-151.0,0.00013972,2]
[351815575,1738798254377,-151.0,0.00013972,2]
[351815576,1738798254389,-579.63,0.00013972,2]
[351815577,1738798254399,-572.03,0.00013972,2]
[351815578,1738798254408,-500.0,0.00013972,2]
[351815579,1738798254420,-1682.9,0.00013972,2]
[351815580,1738798254429,-500.0,0.00013972,2]
[351815581,1738798254438,-500.0,0.00013972,2]
[351815582,1738798254448,-500.0,0.00013972,2]
[351815583,1738798254458,-500.0,0.00013972,2]
[351815584,1738798254467,-151.0,0.00013972,2]
[351815585,1738798254476,-589.68,0.00013972,2]
[351815586,1738798254486,-1761.84,0.00013972,2]
[351815587,1738798254495,-500.0,0.00013972,2]
[351815588,1738798254504,-1432.24,0.00013972,2]
[351815589,1738798254513,-544.29,0.00013972,2]
[351815590,1738798254523,-500.0,0.00013972,2]
[351815591,1738798254532,-500.0,0.00013972,2]
[351815592,1738798254541,-500.0,0.00013972,2]
[351815593,1738798254550,-500.0,0.00013972,2]
[351815594,1738798254560,-500.0,0.00013972,2]
[351815595,1738798254570,-500.0,0.00013972,2]
[351815596,1738798254579,-500.0,0.00013972,2]
[351815597,1738798254588,-151.0,0.00013972,2]
[351815598,1738798254602,-813.58,0.00013972,2]
[351815599,1738798254616,-1157.63,0.00013972,2]
[351815600,1738798254626,-500.0,0.00013972,2]
[351815601,1738798254636,-500.0,0.00013972,2]
[351815602,1738798254645,-541.9,0.00013972,2]